fUST/lending_fUST_20240504
["ID","MTS","AMOUNT","RATE_DAILY","PERIOD"]
[325366972,1714753834271,-500.0,0.00024931,2]
[325366973,1714753834281,-500.0,0.00024931,2]
[325366974,1714753834290,-802.74,0.00024931,2]
[325366975,1714753834299,-5796.46,0.00024931,2]
[325366976,1714753834308,-935.15,0.00024931,2]
[325366977,1714753834318,-500.0,0.00024931,2]
[325366978,1714753834327,-500.0,0.00024931,2]
[325366979,1714753834336,-2876.0,0.00025,3]
[325366980,1714753834348,-500.0,0.00025205,2]
[325366981,1714753834358,-500.0,0.00025205,2]
[325366982,1714753834367,-500.0,0.00025205,2]
[325366983,1714753834377,-500.0,0.00025205,2]
[325366984,1714753834387,-500.0,0.00025205,2]
[325366985,1714753834396,-1000.0,0.00025205,2]
[325366986,1714753834405,-500.0,0.00025205,2]
[325366987,1714753834414,-500.0,0.00025205,2]
[325366988,1714753834424,-500.0,0.00025205,2]
[325366989,1714753834434,-500.0,0.00025205,2]
[325366990,1714753834444,-177.74632215,0.00025205,2]
[325366991,1714753834453,-500.0,0.00025205,2]
[325366992,1714753834462,-500.0,0.00025205,2]
[325366993,1714753834472,-391.04608487,0.00025205,2]
[325366994,1714753834483,-500.0,0.00025205,2]
[325366995,1714753834493,-500.0,0.00025205,2]
[325366996,1714753834503,-500.0,0.00025205,2]
[325366997,1714753834512,-500.0,0.00025205,2]
[325366998,1714753834523,-500.0,0.00025205,2]
[325366999,1714753834532,-500.0,0.00025205,2]
[325367000,1714753834542,-500.0,0.00025205,2]
[325367001,1714753834551,-500.0,0.00025205,2]
[325367002,1714753834560,-85.16516331,0.00025205,2]
[325367005,1714753835596,189.36782433,0.00020913,2]
[325367060,1714753838099,-500.0,0.00024657,2]
[325367061,1714753838108,-500.0,0.00024657,2]
[325367062,1714753838118,-1050.38717348,0.00024921,3]
[325367063,1714753838130,-528.30951704,0.00024921,3]
[325367064,1714753838141,-15100.99330948,0.00024921,3]
[325367065,1714753838150,-500.0,0.00024931,2]
[325367066,1714753838160,-414.83483669,0.00025205,2]
[325367071,1714753838369,-500.0,0.00025205,2]
[325367072,1714753838392,-488.45782087,0.00025205,2]
[325367073,1714753838404,-500.0,0.00025205,2]
[325367074,1714753838414,-500.0,0.00025205,2]
[325367075,1714753838423,-999.04,0.00025205,2]
[325367076,1714753838434,-500.0,0.00025205,2]
[325367077,1714753838444,-190.96848604,0.00025205,2]
[325367078,1714753838454,-500.0,0.00025205,2]
[325367079,1714753838463,-500.0,0.00025205,2]
[325367080,1714753838473,-500.0,0.00025205,2]
[325367081,1714753838483,-500.0,0.00025205,2]
[325367082,1714753838492,-500.0,0.00025205,2]
[325367084,1714753838502,-500.0,0.00025205,2]
[325367086,1714753838512,-500.0,0.00025205,2]
[325367088,1714753838523,-700.55,0.00025205,2]
[325367090,1714753838533,-514.83142907,0.00025205,2]
[325367091,1714753838543,-500.0,0.00025205,2]
[325367093,1714753838553,-500.0,0.00025205,2]
[325367094,1714753838562,-897.21,0.00025205,2]
[325367096,1714753838571,-816.2,0.00025205,2]
[325367097,1714753838580,-500.0,0.00025205,2]
[325367098,1714753838589,-500.0,0.00025205,2]
[325367099,1714753838598,-500.0,0.00025205,2]
[325367100,1714753838608,-254.30407937,0.00025205,2]
[325367101,1714753838618,-500.0,0.00025205,2]
[325367102,1714753838627,-846.44,0.00025205,2]
[325367103,1714753838635,-500.0,0.00025205,2]
[325367104,1714753838644,-500.0,0.00025205,2]
[325367105,1714753838653,-500.0,0.00025205,2]
[325367106,1714753838663,-500.0,0.00025205,2]
[325367107,1714753838673,-500.0,0.00025205,2]
[325367108,1714753838682,-500.0,0.00025205,2]
[325367109,1714753838693,-555.09,0.00025205,2]
[325367110,1714753838703,-500.0,0.00025205,2]
[325367111,1714753838712,-500.0,0.00025205,2]
[325367112,1714753838722,-500.0,0.00025205,2]
[325367113,1714753838732,-500.0,0.00025205,2]
[325367114,1714753838741,-500.0,0.00025205,2]
[325367115,1714753838751,-500.0,0.00025205,2]
[325367116,1714753838760,-152.10228207,0.00025205,2]
[325367117,1714753838770,-293.47435891,0.00025205,2]
[325367118,1714753838782,-206.52564109,0.00025205,2]
[325367119,1714753838791,-1658.96,0.00025205,2]
[325367120,1714753838801,-500.0,0.00025205,2]
[325367121,1714753838810,-500.0,0.00025205,2]
[325367122,1714753838819,-500.0,0.00025205,2]
[325367123,1714753838829,-524.33,0.00025205,2]
[325367124,1714753838838,-500.0,0.00025205,2]
[325367125,1714753838846,-1206.19,0.00025205,2]
[325367126,1714753838855,-500.0,0.00025205,2]
[325367127,1714753838864,-500.0,0.00025205,2]
[325367128,1714753838874,-500.0,0.00025205,2]
[325367129,1714753838883,-500.0,0.00025205,2]
[325367130,1714753838892,-500.0,0.00025205,2]
[325367131,1714753838901,-500.0,0.00025205,2]
[325367132,1714753838911,-500.0,0.00025205,2]
[325367133,1714753838920,-500.0,0.00025205,2]
[325367134,1714753838929,-500.0,0.00025205,2]
[325367135,1714753838938,-500.0,0.00025205,2]
[325367136,1714753838947,-593.79,0.00025205,2]
[325367137,1714753838955,-616.52,0.00025205,2]
[325367138,1714753838964,-500.0,0.00025205,2]
[325367139,1714753838973,-500.0,0.00025205,2]
[325367140,1714753838982,-578.39,0.00025205,2]
[325367141,1714753838991,-500.0,0.00025205,2]
[325367142,1714753839000,-600.24,0.00025205,2]
[325367143,1714753839009,-500.0,0.00025205,2]
[325367144,1714753839018,-500.0,0.00025205,2]
[325367145,1714753839028,-500.0,0.00025205,2]
[325367146,1714753839037,-1146.72,0.00025205,2]
[325367147,1714753839047,-500.0,0.00025205,2]
[325367148,1714753839057,-500.0,0.00025205,2]
[325367149,1714753839066,-500.0,0.00025205,2]
[325367150,1714753839075,-500.0,0.00025205,2]
[325367151,1714753839084,-389.61237611,0.00025205,2]
[325367152,1714753839096,-639.20762389,0.00025205,2]
[325367153,1714753839105,-500.0,0.00025205,2]
[325367154,1714753839115,-500.0,0.00025205,2]
[325367155,1714753839124,-1150.14,0.00025205,2]
[325367156,1714753839133,-603.44,0.00025205,2]
[325367157,1714753839142,-500.0,0.00025205,2]
[325367158,1714753839151,-500.0,0.00025205,2]
[325367159,1714753839161,-500.0,0.00025205,2]
[325367160,1714753839170,-500.0,0.00025205,2]
[325367161,1714753839179,-500.0,0.00025205,2]
[325367162,1714753839188,-638.88236448,0.00025205,2]
[325367163,1714753839198,-437.47257957,0.00025205,2]
[325367164,1714753839208,-500.0,0.00025205,2]
[325367165,1714753839217,-500.0,0.00025205,2]
[325367166,1714753839227,-500.0,0.00025205,2]
[325367167,1714753839238,-707.03,0.00025205,2]
[325367168,1714753839248,-802.34,0.00025205,2]
[325367169,1714753839267,-253.54243206,0.00025205,2]
[325367170,1714753839283,-500.0,0.00024931,2]
[325367171,1714753839292,-938.01756794,0.00025205,2]
[325367172,1714753839301,-500.0,0.00025205,2]
[325367173,1714753839312,-500.0,0.00025205,2]
[325367174,1714753839322,-1242.79,0.00025205,2]
[325367175,1714753839332,-500.0,0.00025205,2]
[325367176,1714753839343,-1910.18,0.00025205,2]
[325367177,1714753839358,-500.0,0.00025205,2]
[325367178,1714753839367,-500.0,0.00025205,2]
[325367179,1714753839377,-500.0,0.00025205,2]
[325367180,1714753839387,-500.0,0.00025205,2]
[325367181,1714753839396,-500.0,0.00025205,2]
[325367182,1714753839406,-500.0,0.00025205,2]
[325367183,1714753839415,-339.43468046,0.00025205,2]
[325367184,1714753839426,-659.31,0.00025205,2]
[325367185,1714753839435,-500.0,0.00025205,2]
[325367186,1714753839444,-1130.29,0.00025205,2]
[325367187,1714753839454,-2525.67,0.00025205,2]
[325367188,1714753839463,-500.0,0.00025205,2]
[325367189,1714753839473,-2285.52,0.00025205,2]
[325367190,1714753839483,-500.0,0.00025205,2]
[325367191,1714753839493,-500.0,0.00025205,2]
[325367192,1714753839503,-500.0,0.00025205,2]
[325367193,1714753839513,-645.24,0.00025205,2]
[325367194,1714753839523,-983.82,0.00025205,2]
[325367195,1714753839532,-566.87,0.00025205,2]
[325367196,1714753839542,-500.0,0.00025205,2]
[325367197,1714753839552,-500.0,0.00025205,2]
[325367198,1714753839561,-500.0,0.00025205,2]
[325367199,1714753839570,-730.69,0.00025205,2]
[325367200,1714753839580,-500.0,0.00025205,2]
[325367201,1714753839589,-201.57527918,0.00025205,2]
[325367203,1714753839598,-504.93959184,0.00025205,2]
[325367204,1714753839608,-1247.48,0.00025205,2]
[325367205,1714753839618,-500.0,0.00025205,2]
[325367206,1714753839627,-605.50593289,0.00025205,2]
[325367207,1714753839635,-484.07137299,0.00025205,2]
[325367208,1714753839645,-500.0,0.00025205,2]
[325367209,1714753839654,-500.0,0.00025205,2]
[325367210,1714753839663,-7928.69,0.00025205,2]
[325367211,1714753839672,-500.0,0.00025205,2]
[325367212,1714753839681,-500.0,0.00025205,2]
[325367213,1714753839690,-2513.88,0.00025205,2]
[325367214,1714753839699,-500.0,0.00025205,2]
[325367215,1714753839709,-500.0,0.00025205,2]
[325367216,1714753839718,-500.0,0.00025205,2]
[325367217,1714753839727,-4742.35,0.00025205,2]
[325367218,1714753839736,-1106.15,0.00025205,2]
[325367219,1714753839745,-500.0,0.00025205,2]
[325367220,1714753839754,-759.76,0.00025205,2]
[325367221,1714753839763,-506.70111487,0.00025205,2]
[325367222,1714753839774,-509.60730602,0.00025205,2]
[325367223,1714753839783,-510.47,0.00025205,2]
[325367224,1714753839791,-1.56883587,0.00025205,2]
[325367268,1714753843920,301.23668295,0.00020913,2]
[325367278,1714753846176,-154.65974855,0.00023,2]
[325367279,1714753846186,-1499.09025145,0.00023931,2]
[325367282,1714753851864,1146.68022854,0.00020913,2]
[325367286,1714753856369,513.16921388,0.00020913,2]
[325367292,1714753867460,1146.68022854,0.00020913,2]
[325367297,1714753891839,1146.68022854,0.00020913,2]
[325367300,1714753907851,1146.68022854,0.00020913,2]
[325367303,1714753923860,1146.68022854,0.00020913,2]
[325367305,1714753939947,1146.68022854,0.00020913,2]
[325367309,1714753971930,769.1530622,0.00018821,2]
[325367310,1714753996012,-362.49207178,0.00020912,2]
[325367311,1714753996034,-787.50792822,0.00020912,2]
[325367313,1714754073698,500.0,0.00019178,2]
[325367314,1714754073748,500.0,0.00019178,2]
[325367315,1714754073814,500.0,0.00019178,2]
[325367316,1714754073854,500.0,0.00019178,2]
[325367317,1714754073897,500.0,0.00019178,2]
[325367318,1714754073943,500.0,0.00019178,2]
[325367319,1714754073990,500.0,0.00019178,2]
[325367320,1714754074025,500.0,0.00019178,2]
[325367321,1714754074080,181.09145051,0.00019178,2]
[325367322,1714754074126,500.0,0.00019178,2]
[325367323,1714754074174,500.0,0.00019178,2]
[325367324,1714754074227,500.0,0.00019178,2]
[325367325,1714754183639,168.01959859,0.00019178,2]
[325367326,1714754189514,45811.51187537,0.0002,2]
[325367327,1714754193201,265.71985769,0.00019866,2]
[325367329,1714754347133,161.184568,0.00019635,2]
[325367331,1714754375235,823.9059924,0.00019909,2]
[325367332,1714754378492,164.17836082,9.999e-05,2]
[325367333,1714754383430,308.98340641,9.999e-05,2]
[325367334,1714754385936,1379.02545459,9.999e-05,2]
[325367335,1714754396962,891.27337061,9.999e-05,2]
[325367336,1714754400756,412.39463435,9.999e-05,2]
[325367337,1714754439381,583.80419576,9.999e-05,2]
[325367338,1714754442790,469.15428183,9.999e-05,2]
[325367339,1714754621742,9140.592806,0.00019889,2]
[325367340,1714754740718,-150.0,0.0002666,120]
[325367341,1714754741122,-167.94262328,0.00020698,2]
[325367342,1714754741140,-583.80419576,0.00020797,2]
[325367343,1714754741159,-193.00291925,0.00020798,2]
[325367344,1714754746090,-1146.68022854,0.00020796,2]
[325367345,1714754746112,-18.61451067,0.00020798,2]
[325367346,1714754810093,513.70463444,9.999e-05,2]
[325367347,1714754825109,-1146.68022854,0.00020809,2]
[325367348,1714754825130,-1492.55196417,0.00020901,2]
[325367349,1714754825151,-1030.12685824,0.00020902,2]
[325367350,1714754825347,-212.12287173,0.0002091,2]
[325367351,1714754825369,-155.64700071,0.0002091,2]
[325367352,1714754825389,-206.84821955,0.0002091,2]
[325367353,1714754825409,-209.01644397,0.0002091,2]
[325367354,1714754825429,-308.84790387,0.0002091,2]
[325367355,1714754825450,-1377.99038256,0.0002091,2]
[325367356,1714754825470,-890.22479321,0.0002091,2]
[325367357,1714754825490,-555.93262988,0.0002091,2]
[325367358,1714754825511,-470.04504629,0.0002091,2]
[325367359,1714754825531,-685.34463833,0.0002091,2]
[325367360,1714754825551,-514.23297925,0.00020911,2]
[325367361,1714754825571,-266.86053177,0.00020911,2]
[325367362,1714754825591,-154.92184352,0.00020911,2]
[325367363,1714754825611,-265.15548531,0.00020912,2]
[325367364,1714754830141,-513.42078768,0.00020911,2]
[325367365,1714754830161,-26.10642157,0.00020912,2]
[325367366,1714754830181,-525.36877253,0.00020912,4]
[325367367,1714754830202,-1605.93283729,0.00020912,2]
[325367368,1714754830222,-199.9861592,0.00020912,2]
[325367369,1714754830242,-189.49749653,0.00020912,2]
[325367370,1714754830262,-300.92786893,0.00020912,2]
[325367371,1714754830283,-217.20715356,0.00020912,2]
[325367372,1714754830304,-235.83612481,0.00020912,2]
[325367373,1714754830324,-2102.35981509,0.00020912,2]
[325367374,1714754830345,-730.61014924,0.00020912,2]
[325367375,1714754830365,-200.52962551,0.00020912,2]
[325367376,1714754830388,-521.67886641,0.00020912,2]
[325367377,1714754830408,-2627.08475998,0.00020912,2]
[325367378,1714754830428,-206.18739777,0.00020912,2]
[325367379,1714754830448,-20200.60362902,0.00020912,2]
[325367380,1714754830468,-717.91087502,0.00020912,2]
[325367381,1714754830487,-156.05275159,0.00020912,2]
[325367382,1714754830508,-648.00564767,0.00020912,2]
[325367383,1714754830529,-213.7765641,0.00020912,2]
[325367384,1714754830550,-3324.80542024,0.00020912,2]
[325367385,1714754830570,-603.75411,0.00020912,2]
[325367386,1714754830590,-283.37019202,0.00020912,2]
[325367387,1714754830611,-205.08723608,0.00020912,2]
[325367388,1714754830633,-309.3194971,0.00020912,2]
[325367389,1714754830656,-241.61171692,0.00020912,2]
[325367390,1714754830677,-154.86061926,0.00020912,2]
[325367391,1714754830699,-154.86061926,0.00020912,2]
[325367392,1714754830720,-187.59715936,0.00020912,2]
[325367393,1714754830744,-173.40883849,0.00020912,4]
[325367394,1714754830764,-193.80442549,0.00020912,2]
[325367395,1714754830784,-1078.72294783,0.00020912,2]
[325367396,1714754830804,-155.09772263,0.00020912,2]
[325367397,1714754830825,-939.34960788,0.00020912,2]
[325367398,1714754830846,-233.35117561,0.00020912,2]
[325367399,1714754830871,-709.89305319,0.00020912,2]
[325367400,1714754830892,-964.61124368,0.00020912,2]
[325367401,1714754830914,-658.6887612,0.00020912,2]
[325367402,1714754830936,-2151.49742399,0.00020912,2]
[325367403,1714754830957,-1396.5546024,0.00020912,2]
[325367404,1714754830979,-240.0861284,0.00020912,2]
[325367405,1714754831000,-167.2002434,0.00020912,2]
[325367406,1714754831020,-255.63637849,0.00020912,2]
[325367407,1714754831040,-263.82780671,0.00020912,2]
[325367408,1714754831060,-960.40657499,0.00020912,2]
[325367409,1714754831081,-1395.86161104,0.00020913,2]
[325367410,1714754831102,-166.666666,0.00021918,2]
[325367411,1714754831125,-1007.3794895,0.00021918,2]
[325367412,1714754831145,-256.53415202,0.00022,2]
[325367413,1714754831167,-166.666666,0.00022431,2]
[325367414,1714754831188,-166.666666,0.00022944,2]
[325367415,1714754831208,-714.56650019,0.00023,2]
[325367416,1714754831230,-166.666666,0.00023456,2]
[325367417,1714754831250,-166.666666,0.00023969,2]
[325367418,1714754831271,-166.666666,0.00024482,2]
[325367419,1714754831292,-2000.0,0.00024557,2]
[325367420,1714754831313,-231.31674622,0.00024557,2]
[325367421,1714754831335,-557.1,0.00024647,3]
[325367422,1714754831356,-631.23238339,0.00024656,2]
[325367423,1714754831380,-500.0,0.00024657,2]
[325367424,1714754831402,-500.0,0.00024657,2]
[325367425,1714754831424,-500.0,0.00024657,2]
[325367426,1714754831445,-245.19202447,0.00024657,2]
[325367427,1714754831467,-500.0,0.00024657,2]
[325367428,1714754831489,-500.0,0.00024657,2]
[325367429,1714754831511,-500.0,0.00024657,2]
[325367430,1714754831657,-515.22935238,0.00024657,2]
[325367431,1714754831679,-682.8,0.00024657,2]
[325367432,1714754831703,-500.0,0.00024657,2]
[325367433,1714754831726,-500.0,0.00024657,2]
[325367434,1714754831750,-500.0,0.00024657,2]
[325367435,1714754831772,-500.0,0.00024657,2]
[325367436,1714754831793,-500.0,0.00024657,2]
[325367437,1714754831816,-500.0,0.00024657,2]
[325367438,1714754831839,-918.57,0.00024657,2]
[325367439,1714754831862,-500.0,0.00024657,2]
[325367440,1714754831885,-740.64,0.00024657,2]
[325367441,1714754831906,-500.0,0.00024657,2]
[325367442,1714754831926,-500.0,0.00024657,2]
[325367443,1714754831947,-800.0,0.00024657,2]
[325367444,1714754831968,-500.0,0.00024657,2]
[325367445,1714754831989,-467.44976014,0.00024657,2]
[325367446,1714754832010,-500.0,0.00024657,2]
[325367447,1714754832030,-500.0,0.00024657,2]
[325367448,1714754832050,-500.0,0.00024657,2]
[325367449,1714754832070,-500.0,0.00024657,2]
[325367450,1714754832090,-500.0,0.00024657,2]
[325367451,1714754832111,-500.0,0.00024657,2]
[325367452,1714754832132,-500.0,0.00024657,2]
[325367453,1714754832152,-500.0,0.00024657,2]
[325367454,1714754832172,-544.98588063,0.00024657,2]
[325367455,1714754832193,-500.0,0.00024657,2]
[325367456,1714754832213,-500.0,0.00024657,2]
[325367457,1714754832234,-500.0,0.00024657,2]
[325367458,1714754832255,-500.0,0.00024657,2]
[325367459,1714754832275,-500.0,0.00024657,2]
[325367460,1714754832295,-500.0,0.00024657,2]
[325367461,1714754832316,-500.0,0.00024657,2]
[325367462,1714754832336,-500.0,0.00024657,2]
[325367463,1714754832357,-536.04,0.00024657,2]
[325367464,1714754832379,-1115.65,0.00024657,2]
[325367465,1714754832400,-3805.41,0.00024657,2]
[325367466,1714754832421,-594.4842186,0.00024657,2]
[325367467,1714754832443,-500.0,0.00024657,2]
[325367468,1714754832464,-500.0,0.00024657,2]
[325367469,1714754832484,-500.0,0.00024657,2]
[325367470,1714754832504,-500.0,0.00024657,2]
[325367471,1714754832526,-500.0,0.00024657,2]
[325367472,1714754832547,-1143.78,0.00024657,2]
[325367473,1714754832567,-500.0,0.00024657,2]
[325367474,1714754832588,-1185.74,0.00024657,2]
[325367475,1714754832609,-596.69,0.00024657,2]
[325367476,1714754832633,-500.0,0.00024657,2]
[325367477,1714754832656,-500.0,0.00024657,2]
[325367478,1714754832682,-500.0,0.00024657,2]
[325367479,1714754832715,-500.0,0.00024657,2]
[325367480,1714754832743,-2868.73,0.00024657,2]
[325367481,1714754832773,-500.0,0.00024657,2]
[325367482,1714754832804,-500.0,0.00024657,2]
[325367483,1714754832833,-500.0,0.00024657,2]
[325367484,1714754832863,-500.0,0.00024657,2]
[325367485,1714754832893,-500.0,0.00024657,2]
[325367486,1714754832918,-546.7006748,0.00024657,2]
[325367487,1714754832949,-655.13,0.00024657,2]
[325367488,1714754832981,-500.0,0.00024657,2]
[325367489,1714754833009,-500.0,0.00024657,2]
[325367490,1714754833035,-500.41417828,0.00024657,2]
[325367491,1714754833065,-500.0,0.00024657,2]
[325367492,1714754833090,-586.37,0.00024657,2]
[325367493,1714754833115,-500.0,0.00024657,2]
[325367494,1714754833142,-500.0,0.00024657,2]
[325367495,1714754833167,-1092.19,0.00024657,2]
[325367496,1714754833193,-500.0,0.00024657,2]
[325367497,1714754833218,-500.0,0.00024657,2]
[325367498,1714754833242,-500.0,0.00024657,2]
[325367499,1714754833269,-500.0,0.00024657,2]
[325367500,1714754833294,-500.0,0.00024657,2]
[325367501,1714754833318,-500.0,0.00024657,2]
[325367502,1714754833343,-500.0,0.00024657,2]
[325367503,1714754833367,-500.0,0.00024657,2]
[325367504,1714754833396,-500.0,0.00024657,2]
[325367505,1714754833420,-2010.7,0.00024657,2]
[325367506,1714754833446,-500.0,0.00024657,2]
[325367507,1714754833471,-500.0,0.00024657,2]
[325367508,1714754833496,-500.0,0.00024657,2]
[325367509,1714754833522,-606.09,0.00024657,2]
[325367510,1714754833549,-500.0,0.00024657,2]
[325367511,1714754833575,-500.0,0.00024657,2]
[325367512,1714754833600,-939.94,0.00024657,2]
[325367513,1714754833629,-1182.94,0.00024657,2]
[325367514,1714754833657,-500.0,0.00024657,2]
[325367515,1714754833683,-500.0,0.00024657,2]
[325367516,1714754833713,-993.47,0.00024657,2]
[325367517,1714754833744,-500.0,0.00024657,2]
[325367518,1714754833770,-500.0,0.00024657,2]
[325367519,1714754833795,-500.0,0.00024657,2]
[325367520,1714754833821,-500.0,0.00024657,2]
[325367521,1714754833847,-500.0,0.00024657,2]
[325367522,1714754833876,-448.75557327,0.00024657,2]
[325367523,1714754833902,-500.0,0.00024657,2]
[325367524,1714754833927,-500.0,0.00024657,2]
[325367525,1714754833953,-1970.96,0.00024657,2]
[325367526,1714754834139,-500.0,0.00024657,2]
[325367527,1714754834160,-501.27383905,0.00024657,2]
[325367528,1714754834183,-635.8,0.00024657,2]
[325367529,1714754834203,-500.0,0.00024657,2]
[325367530,1714754834223,-500.0,0.00024657,2]
[325367531,1714754834244,-329.14637404,0.00024657,2]
[325367532,1714754834264,-500.0,0.00024657,2]
[325367533,1714754834285,-754.05,0.00024657,2]
[325367534,1714754834305,-500.0,0.00024657,2]
[325367535,1714754834326,-1347.41,0.00024657,2]
[325367536,1714754834347,-718.38,0.00024657,2]
[325367537,1714754834370,-189.06426249,0.00024657,2]
[325367538,1714754834391,-1167.89,0.00024657,2]
[325367539,1714754834412,-500.0,0.00024657,2]
[325367540,1714754834433,-1254.9,0.00024657,2]
[325367541,1714754834454,-500.0,0.00024657,2]
[325367542,1714754834476,-500.0,0.00024657,2]
[325367543,1714754834497,-500.0,0.00024657,2]
[325367544,1714754834518,-500.0,0.00024657,2]
[325367545,1714754834541,-860.68,0.00024657,2]
[325367546,1714754834561,-500.0,0.00024657,2]
[325367547,1714754834580,-500.0,0.00024657,2]
[325367548,1714754834600,-500.0,0.00024657,2]
[325367549,1714754834623,-500.0,0.00024657,2]
[325367550,1714754834644,-500.0,0.00024657,2]
[325367551,1714754834666,-1093.23,0.00024657,2]
[325367552,1714754834688,-500.0,0.00024657,2]
[325367553,1714754834712,-649.87,0.00024657,2]
[325367554,1714754834735,-500.0,0.00024657,2]
[325367555,1714754834756,-500.0,0.00024657,2]
[325367556,1714754834778,-500.0,0.00024657,2]
[325367557,1714754834799,-500.0,0.00024657,2]
[325367558,1714754834819,-502.57560993,0.00024657,2]
[325367559,1714754834843,-500.0,0.00024657,2]
[325367560,1714754834866,-500.0,0.00024657,2]
[325367561,1714754834889,-500.0,0.00024657,2]
[325367562,1714754834911,-545.34,0.00024657,2]
[325367563,1714754834932,-500.0,0.00024657,2]
[325367564,1714754834952,-500.0,0.00024657,2]
[325367565,1714754834973,-500.0,0.00024657,2]
[325367566,1714754834993,-500.0,0.00024657,2]
[325367567,1714754835014,-500.0,0.00024657,2]
[325367568,1714754835035,-500.0,0.00024657,2]
[325367569,1714754835056,-500.0,0.00024657,2]
[325367570,1714754835076,-564.81,0.00024657,2]
[325367571,1714754835096,-572.63,0.00024657,2]
[325367572,1714754835116,-617.89,0.00024657,2]
[325367573,1714754835138,-500.0,0.00024657,2]
[325367574,1714754835158,-615.18799697,0.00024657,2]
[325367575,1714754835178,-500.0,0.00024657,2]
[325367576,1714754835198,-500.0,0.00024657,2]
[325367577,1714754835218,-500.0,0.00024657,2]
[325367578,1714754835238,-500.00361566,0.00024657,2]
[325367579,1714754835259,-500.0,0.00024657,2]
[325367580,1714754835280,-500.0,0.00024657,2]
[325367581,1714754835300,-500.0,0.00024657,2]
[325367582,1714754835320,-500.0,0.00024657,2]
[325367583,1714754835342,-1674.5,0.00024657,2]
[325367584,1714754835362,-500.0,0.00024657,2]
[325367585,1714754835384,-1052.43,0.00024657,2]
[325367586,1714754835404,-500.0,0.00024657,2]
[325367587,1714754835425,-500.0,0.00024657,2]
[325367588,1714754835446,-500.0,0.00024657,2]
[325367589,1714754835466,-284.99927358,0.00024657,2]
[325367590,1714754835487,-500.0,0.00024657,2]
[325367591,1714754835508,-500.0,0.00024657,2]
[325367592,1714754835528,-500.0,0.00024657,2]
[325367593,1714754835549,-500.0,0.00024657,2]
[325367594,1714754835570,-500.0,0.00024657,2]
[325367595,1714754835591,-681.23,0.00024657,2]
[325367596,1714754835612,-500.0,0.00024657,2]
[325367597,1714754835633,-500.0,0.00024657,2]
[325367598,1714754835660,-912.57,0.00024657,2]
[325367599,1714754835682,-500.0,0.00024657,2]
[325367600,1714754835703,-500.0,0.00024657,2]
[325367601,1714754835723,-1237.52,0.00024657,2]
[325367602,1714754835749,-506.06,0.00024657,2]
[325367603,1714754835769,-500.0,0.00024657,2]
[325367604,1714754835789,-500.0,0.00024657,2]
[325367605,1714754835810,-500.0,0.00024657,2]
[325367606,1714754835831,-500.0,0.00024657,2]
[325367607,1714754835856,-168.22094884,0.00024657,2]
[325367608,1714754836183,-476.63170088,0.00024657,2]
[325367609,1714754836203,-500.0,0.00024657,2]
[325367610,1714754836224,-8213.71,0.00024657,2]
[325367611,1714754836243,-500.0,0.00024657,2]
[325367612,1714754836262,-500.0,0.00024657,2]
[325367613,1714754836282,-213.62699409,0.00024657,2]
[325367614,1714754836301,-1886.45,0.00024657,2]
[325367615,1714754836321,-500.0,0.00024657,2]